[Event "USA Championship 2024"]
[Site "Saint Louis"]
[Date "2024.10.22"]
[Round "10.1"]
[White "Dominguez Perez, Leinier"]
[Black "Caruana, Fabiano"]
[Result "1/2-1/2"]
[ECO "B31"]
[WhiteElo "2741"]
[BlackElo "2796"]
[Annotator "TA"]
[PlyCount "114"]
[EventDate "2024.10.09"]
[EventType "tourn"]
[EventCountry "USA"]
[SourceTitle "playchess.com"]
[Source "ChessBase"]
[SourceQuality "1"]
[TimeControl "40/5400+30:1800+30"]

{[%evp 22,114,7,20,22,27,33,18,14,19,17,-9,0,-49,-50,-45,-10,-7,-7,-12,-11,-18,-16,-18,-18,-51,0,-8,0,-8,-9,-7,-19,-19,0,0,0,0,0,0,0,0,0,0,0,0,0,0,0,0,0,0,0,0,0,0,0,0,0,0,0,0,0,0,0,0,0,0,0,0,0,0,0,0,0,0,0,0,0,0,0,0,0,0,0,0,0,0,0,0,0,0,0,0,0]} 1. e4 {[%emt 0:00:03]} c5 {[%emt 0:00:07]} 2. Nf3 {[%emt 0:00:23]} Nc6 {[%emt 0:00:04]} 3. Bb5 {[%emt 0:00:23]} g6 {[%emt 0:00:10]} 4. Bxc6 {[%emt 0:00:21]} bxc6 {[%emt 0:00:06]} 5. O-O {[%emt 0:00:12]} Bg7 {[%emt 0:00:04]} 6. Re1 {[%emt 0:00:19]} Nf6 {[%emt 0:00:35]} 7. e5 {[%emt 0:10:34]} Nd5 {[%emt 0:00:22]} 8. b3 {[%emt 0:10:49]} O-O {[%emt 0:06:24]} 9. Bb2 {[%emt 0:00:35]} a5 {[%emt 0:02:44]} 10. Nc3 {[%emt 0:02:01]} Nxc3 {[%emt 0:09:51]} 11. Bxc3 {[%emt 0:00:10]} a4 {[%emt 0:00:20]} 12. h3 {[%emt 0:22:48]} d5 {[%emt 0:09:40]} 13. d4 {[%emt 0:10:07]} cxd4 {[%emt 0:12:53]} 14. Qxd4 {[%emt 0:00:43]} Bf5 {[%emt 0:01:00]} 15. Qc5 {[%emt 0:02:51]} e6 {[%emt 0:05:34]} (15... Bxc2 $2 {too greedy.} 16. Nd4 $18) 16. Nd4 {[%emt 0:10:54]} Qg5 {[%emt 0:01:57]} 17. Nxf5 {[%emt 0:04:23]} (17. Nf3 $11 Qd8 18. Bb4) 17... Qxf5 $15 {[%emt 0:01:09]} 18. Bd4 {[%emt 0:00:17]} axb3 {[%emt 0:08:37]} 19. axb3 {[%emt 0:00:53]} Rxa1 {[%emt 0:00:08]} 20. Bxa1 {[%emt 0:00:15]} Rc8 {[%emt 0:00:21]} 21. Bd4 {[%emt 0:01:23]} Bf8 {[%emt 0:07:02]} 22. Qc3 {[%emt 0:00:08]} h5 {[%emt 0:00:54]} (22... c5 23. b4 c4 24. Rb1 $16) 23. Bc5 {[%emt 0:03:10]} Qf4 {[%emt 0:06:49]} ({Black should play} 23... Bxc5 $15 24. Qxc5 Ra8) 24. b4 {[%emt 0:04:56]} Kg7 {[%emt 0:02:49]} 25. Bxf8+ {[%emt 0:01:27]} Rxf8 {[%emt 0:00:06]} 26. g3 $1 {[%emt 0:04:37]} Qf5 {[%emt 0:00:14]} 27. Kg2 {[%emt 0:00:19]} h4 {[%emt 0:01:59]} 28. g4 {[%emt 0:00:40]} ({Much weaker is} 28. gxh4 Rh8 29. Qg3 Qxc2 $17) 28... Qf4 {[%emt 0:00:04]} 29. Qc5 {[%emt 0:01:31]} Ra8 {[%emt 0:07:40]} 30. Re3 $1 {[%emt 0:00:56]} Ra1 {[%emt 0:08:36]} 31. Qe7 {[%emt 0:00:11]} d4 {[%emt 0:00:34]} 32. Rf3 {[%emt 0:02:05]} Rg1+ $1 {[%emt 0:00:03]} 33. Kxg1 {[%emt 0:00:04]} Qxf3 {[%emt 0:00:02]} 34. Qxh4 {[%emt 0:02:10]} Qf4 {[%emt 0:06:31]} 35. Qg3 {[%emt 0:01:33]} Qe4 {[%emt 0:00:55]} 36. Qd3 {[%emt 0:03:21]} Qxe5 {[%emt 0:00:14]} 37. Kg2 {[%emt 0:00:53]} g5 {[%emt 0:01:21]} 38. Qc4 {[%emt 0:00:21]} Qe4+ {[%emt 0:00:34]} 39. f3 {[%emt 0:00:26]} Qe3 {[%emt 0:00:26]} 40. Qxc6 {[%emt 0:00:36]} Qd2+ {[%emt 0:00:18]} 41. Kf1 {[%emt 0:02:24]} Qxb4 {[%emt 0:01:02]} 42. Ke2 {[%emt 0:00:40]} Qa3 {[%emt 0:00:46]} 43. Qe4 {[%emt 0:00:13]} Qc5 {[%emt 0:00:08]} 44. Kd3 {[%emt 0:01:30]} Qc3+ {[%emt 0:00:05]} 45. Ke2 {[%emt 0:00:04]} Kf6 {[%emt 0:01:29]} 46. Kd1 {[%emt 0:02:30]} Qb4 {[%emt 0:02:32]} 47. Ke2 {[%emt 0:01:54]} Qc3 {[%emt 0:00:32]} 48. Kd1 {[%emt 0:00:07]} Qc5 {[%emt 0:00:20]} 49. Kd2 {[%emt 0:00:54]} Kg7 {[%emt 0:00:14]} 50. Kd3 {[%emt 0:00:31]} e5 {[%emt 0:00:07]} 51. Kd2 {[%emt 0:01:37]} Qc7 {[%emt 0:00:10]} 52. Kd1 {[%emt 0:01:16]} Qc5 {[%emt 0:01:07]} 53. Qf5 {[%emt 0:00:30]} f6 {[%emt 0:00:10]} 54. Qd7+ {[%emt 0:00:12]} Kg6 {[%emt 0:00:12]} 55. Qf5+ {[%emt 0:00:09]} Kg7 {[%emt 0:00:02]} 56. Qd7+ {[%emt 0:00:09]} Kg6 {[%emt 0:00:03]} 57. Qf5+ {[%emt 0:00:07]} Kg7 {[%emt 0:00:07]} 1/2-1/2

[Event "USA Championship 2024"]
[Site "Saint Louis"]
[Date "2024.10.22"]
[Round "10.2"]
[White "Niemann, Hans Moke"]
[Black "Oparin, Grigoriy"]
[Result "1/2-1/2"]
[ECO "B83"]
[WhiteElo "2733"]
[BlackElo "2662"]
[Annotator "TA"]
[PlyCount "94"]
[EventDate "2024.10.09"]
[EventType "tourn"]
[EventCountry "USA"]
[SourceTitle "playchess.com"]
[Source "ChessBase"]
[SourceQuality "1"]
[TimeControl "40/5400+30:1800+30"]

{[%evp 16,94,18,9,14,15,17,20,23,22,23,0,33,14,33,27,22,22,40,35,64,64,72,65,72,72,83,88,70,64,114,90,94,88,90,86,86,65,64,0,0,0,0,1,1,1,2,0,0,0,0,0,0,0,22,0,0,0,53,53,62,49,209,58,58,0,0,0,138,0,0,0,0,0,0,0,0,0,7,0,0]} 1. e4 {[%emt 0:00:03]} c5 {[%emt 0:00:09]} 2. Nf3 {[%emt 0:00:28]} e6 {[%emt 0:00:06]} 3. d4 {[%emt 0:04:12]} cxd4 {[%emt 0:00:12]} 4. Nxd4 {[%emt 0:00:10]} Nc6 {[%emt 0:00:08]} 5. Nc3 {[%emt 0:00:17]} Nf6 {[%emt 0:00:06]} 6. a3 {[%emt 0:09:20]} d6 {[%emt 0:00:32]} 7. Be3 {[%emt 0:00:57]} Be7 {[%emt 0:00:23]} 8. Be2 {[%emt 0:04:40]} O-O {[%emt 0:01:50]} 9. O-O {[%emt 0:00:43]} e5 {[%emt 0:03:33]} 10. Nf3 {[%emt 0:04:05]} h6 {[%emt 0:11:33]} 11. Bc4 {[%emt 0:00:58]} Be6 {[%emt 0:00:25]} 12. Qd3 {[%emt 0:01:42]} Na5 {[%emt 0:12:19]} 13. Bd5 {[%emt 0:09:51]} Bxd5 {[%emt 0:19:36]} 14. Nxd5 {[%emt 0:00:11]} Nxd5 {[%emt 0:00:05]} 15. Qxd5 {[%emt 0:00:19]} Rc8 {[%emt 0:01:59]} 16. Nd2 {[%emt 0:04:43]} Qc7 {[%emt 0:08:55]} (16... Rxc2 $2 17. b4 Nc6 18. Qd3 $16) 17. Rac1 {[%emt 0:00:51]} ({Inferior is} 17. Bxa7 b6 18. b4 Nc6 (18... Qxa7 19. bxa5 bxa5 20. h3 $17) 19. Bxb6 Qxb6 $19) 17... b5 {[%emt 0:03:39]} 18. b3 {[%emt 0:15:16]} ({Of course not} 18. Qxb5 Rb8 19. Qd5 Rxb2 $15) 18... a6 {[%emt 0:13:42]} 19. c4 {[%emt 0:00:58]} Qc6 {[%emt 0:00:08]} 20. Rfd1 {[%emt 0:09:33]} Bg5 {[%emt 0:02:17]} 21. Bxg5 {[%emt 0:02:09]} (21. cxb5 {feels hotter.} Qxc1 22. Rxc1 Rxc1+ 23. Nf1) 21... hxg5 {[%emt 0:00:02]} 22. h3 {[%emt 0:00:47]} Qb6 {[%emt 0:08:58]} (22... Rfe8 $14) 23. cxb5 {[%emt 0:01:04]} Qxb5 {[%emt 0:00:03]} 24. b4 {[%emt 0:00:47]} Nc6 {[%emt 0:00:33]} 25. Qxb5 {[%emt 0:22:04]} ({But not} 25. Qxd6 Rfd8 26. Qc5 Qe2 $11) 25... axb5 {[%emt 0:00:03]} 26. Nf3 {[%emt 0:00:04] Dodges Nd4} f6 {[%emt 0:00:59]} 27. Rxd6 {[%emt 0:01:12] White is more active.} (27. Kf1 $14) 27... Nd4 $1 $11 {[%emt 0:00:45]} 28. Rxc8 {[%emt 0:02:12]} Nxf3+ {[%emt 0:00:05]} 29. gxf3 {[%emt 0:00:04] [#] Rxf8+ would kill now.} Rxc8 {[%emt 0:00:02][%mdl 4096] Endgame. KR-KR} 30. Rb6 {[%emt 0:00:30]} Rc3 {[%emt 0:00:23][%csl LRa3,LRf3]} 31. Rxb5 {[%emt 0:00:08]} Rxa3 {[%emt 0:00:07]} 32. Kg2 {[%emt 0:00:03]} Rb3 {[%emt 0:01:57]} 33. Rb7 {[%emt 0:00:05]} Kh7 {[%emt 0:01:06]} 34. b5 {[%emt 0:00:30][%cal Bb4b5,Bb5b6,Bb6b7][%mdl 32]} Kg6 {[%emt 0:01:38]} 35. b6 {[%emt 0:00:42]} Rb1 $1 {[%emt 0:01:04]} 36. Rb8 {[%emt 0:00:28]} Kh7 {[%emt 0:01:06]} ({Black should play} 36... Kh6 $11) 37. b7 $1 $14 {[%emt 0:03:02]} Kg6 {[%emt 0:00:48]} 38. Kg3 {[%emt 0:01:50]} Rg1+ $1 {[%emt 0:00:30]} 39. Kh2 {[%emt 0:00:04]} Rb1 {[%emt 0:00:03]} 40. Kg2 {[%emt 0:00:09]} (40. f4 $1 $14 exf4 41. f3) 40... Kh7 $1 $11 {[%emt 0:00:28]} 41. Kh2 {[%emt 0:09:10]} ({White should try} 41. f4 $11 gxf4 42. Kf3) 41... Kg6 $16 {[%emt 0:00:13] [#]} 42. Kg2 {[%emt 0:08:00]} ({White has to play} 42. f4 $1 $16 {[%cal Rf4e5] And now fxe5 would win.} exf4 43. f3) 42... Kh7 $1 $11 {[%emt 0:00:12] The position is equal.} 43. Kg3 {[%emt 0:00:21]} Rg1+ $1 {[%emt 0:00:10]} 44. Kh2 {[%emt 0:00:03]} Rb1 {[%emt 0:00:05]} 45. Kg3 {[%emt 0:00:06] next h4 is good for White.} Rg1+ $1 {[%emt 0:00:04]} 46. Kh2 {[%emt 0:00:05]} Rb1 {[%emt 0:00:04]} 47. Kg3 {[%emt 0:00:04]} Rg1+ $1 {[%emt 0:00:10] Weighted Error Value: White=0.11 (very precise) /Black=0.07 (flawless) .  Mistake:       	White=4     	Black=2      Inaccurate:     	White=1     	Black=2      OK:         	White=10    	Black=12     Best:        	---       	Black=3      Strong:       	White=1     	Black=8} 1/2-1/2

[Event "USA Championship 2024"]
[Site "Saint Louis"]
[Date "2024.10.22"]
[Round "10.3"]
[White "So, Wesley"]
[Black "Liang, Awonder"]
[Result "1/2-1/2"]
[ECO "C77"]
[WhiteElo "2751"]
[BlackElo "2677"]
[Annotator "TA"]
[PlyCount "127"]
[EventDate "2024.10.09"]
[EventType "tourn"]
[EventCountry "USA"]
[SourceTitle "playchess.com"]
[Source "ChessBase"]
[SourceQuality "1"]
[TimeControl "40/5400+30:1800+30"]

{[%evp 16,127,9,0,22,25,23,3,0,0,16,0,23,-8,25,8,8,16,15,-39,-44,-62,-42,-44,-36,-43,-56,-54,-9,-33,0,0,0,-23,-28,-29,-39,-35,0,0,0,0,0,-10,-9,-7,-12,-8,0,0,0,0,0,0,0,0,0,-8,-5,-15,0,0,0,-16,-8,-25,-8,-11,-5,-6,-4,-2,0,-3,0,0,0,-8,0,0,0,0,0,0,0,0,0,0,0,0,0,0,0,0,0,0,0,0,0,0,0,0,0,0,0,0,0,0,0,0,0,0,0,0]} 1. e4 {[%emt 0:00:16]} e5 {[%emt 0:00:01]} 2. Nf3 {[%emt 0:00:07]} Nc6 {[%emt 0:00:07]} 3. Bb5 {[%emt 0:00:04][%cal Bf1b5,Bb5a4,Ba4b3][%mdl 32]} a6 {[%emt 0:00:05]} 4. Ba4 {[%emt 0:00:04]} Nf6 {[%emt 0:00:07]} 5. O-O {[%emt 0:00:05]} Be7 {[%emt 0:00:05]} 6. d3 {[%emt 0:00:06]} b5 {[%emt 0:00:06]} 7. Bb3 {[%emt 0:00:02]} d6 {[%emt 0:00:07]} 8. a3 {[%emt 0:00:05]} O-O {[%emt 0:00:09]} 9. Nc3 {[%emt 0:00:04]} Na5 {[%emt 0:00:10]} 10. Ba2 {[%emt 0:00:03]} Be6 {[%emt 0:00:08]} 11. Bxe6 {[%emt 0:06:30]} fxe6 {[%emt 0:00:09]} 12. b4 {[%emt 0:00:02]} Nc6 {[%emt 0:02:04]} 13. Re1 {[%emt 0:01:36]} Qe8 {[%emt 0:02:44]} 14. Rb1 {[%emt 0:06:57]} Nh5 {[%emt 0:02:17]} 15. Ne2 {[%emt 0:02:58]} Qg6 {[%emt 0:09:33]} 16. Ng3 {[%emt 0:01:11]} Nf4 {[%emt 0:05:10]} 17. d4 {[%emt 0:06:36]} (17. c3 $11) 17... exd4 $15 {[%emt 0:02:08]} 18. Nxd4 {[%emt 0:00:08]} Nxd4 {[%emt 0:03:09]} 19. Qxd4 {[%emt 0:00:02]} Bf6 {[%emt 0:00:15]} 20. Qd1 {[%emt 0:01:36]} Be5 {[%emt 0:00:07]} 21. Rb3 {[%emt 0:09:08]} Rf7 {[%emt 0:01:32]} 22. Rf3 {[%emt 0:00:11]} (22. Bxf4 {looks sharper.} Rxf4 23. Nf5 Kh8 24. Nd4) 22... Raf8 {[%emt 0:00:33]} 23. Bxf4 {[%emt 0:01:03]} Bxf4 {[%emt 0:02:56]} 24. Qd3 {[%emt 0:07:18]} Be5 {[%emt 0:00:23]} 25. Rxf7 {[%emt 0:00:06]} Qxf7 {[%emt 0:00:05]} 26. Qe3 {[%emt 0:04:51]} c5 {[%emt 0:05:10]} 27. Ne2 {[%emt 0:01:44] Repels Bd4} Qc7 {[%emt 0:04:20]} 28. c3 {[%emt 0:06:04]} a5 {[%emt 0:01:18]} 29. Rc1 {[%emt 0:07:15]} axb4 {[%emt 0:02:44]} 30. axb4 {[%emt 0:00:49]} Qa7 {[%emt 0:00:38]} 31. h3 {[%emt 0:04:33]} Rf7 {[%emt 0:01:33]} 32. f4 {[%emt 0:05:34]} Bf6 {[%emt 0:00:07]} 33. Rd1 {[%emt 0:00:53]} cxb4 {[%emt 0:00:25]} 34. Qxa7 {[%emt 0:00:03]} Rxa7 {[%emt 0:00:05]} 35. cxb4 $11 {[%emt 0:00:01][%mdl 4096] Endgame. KRB-KRN} Ra6 {[%emt 0:00:19]} 36. Kf2 {[%emt 0:02:14]} Kf7 {[%emt 0:00:28]} 37. Nd4 {[%emt 0:03:36]} Bxd4+ {[%emt 0:00:28]} 38. Rxd4 {[%emt 0:00:02] KR-KR} Ke7 {[%emt 0:00:36]} 39. Ke3 {[%emt 0:01:20]} Ra1 {[%emt 0:00:49]} 40. Rd3 {[%emt 0:08:51]} Rb1 {[%emt 0:01:08]} 41. Ra3 {[%emt 0:32:13] The position is equal.} Rxb4 {[%emt 0:30:06]} 42. Ra7+ {[%emt 0:00:04]} Kf6 {[%emt 0:00:05]} 43. Rd7 {[%emt 0:00:16]} Rb3+ {[%emt 0:00:04]} 44. Kf2 {[%emt 0:01:48]} Rb2+ {[%emt 0:00:05]} 45. Kf3 {[%emt 0:00:05]} Rb3+ {[%emt 0:00:03]} 46. Kf2 {[%emt 0:00:07]} d5 {[%emt 0:00:24]} 47. exd5 {[%emt 0:00:42]} exd5 {[%emt 0:00:52]} 48. Rxd5 {[%emt 0:00:03]} Rb2+ {[%emt 0:00:05]} 49. Kf3 {[%emt 0:00:04]} Rb3+ {[%emt 0:00:04]} 50. Ke4 {[%emt 0:00:47]} Rg3 {[%emt 0:00:19]} 51. Rxb5 {[%emt 0:00:04]} Rxg2 {[%emt 0:00:04]} 52. Rb6+ {[%emt 0:00:03]} Kf7 {[%emt 0:00:03]} 53. h4 {[%emt 0:00:44]} Rh2 {[%emt 0:00:34]} 54. Kf5 {[%emt 0:03:38]} Rxh4 {[%emt 0:00:11]} 55. Rb7+ {[%emt 0:00:27]} Kf8 {[%emt 0:00:03]} 56. Rb8+ {[%emt 0:00:04]} Kf7 {[%emt 0:00:04]} 57. Rb7+ {[%emt 0:00:05]} Kf8 {[%emt 0:00:04]} 58. Rb8+ {[%emt 0:00:03]} Kf7 {[%emt 0:00:05]} 59. Kg5 {[%emt 0:00:37] Dodges Rh5+} Rh1 {[%emt 0:02:25]} 60. Rb7+ {[%emt 0:00:23]} Kf8 {[%emt 0:00:08]} 61. Rb8+ {[%emt 0:00:07]} Kf7 {[%emt 0:00:15]} 62. Rb7+ {[%emt 0:00:07]} Kf8 {[%emt 0:00:16]} 63. Rb8+ {[%emt 0:00:18]} Kf7 {[%emt 0:00:09]} 64. Rb7+ {[%emt 0:00:12] Weighted Error Value: White=0.06 (flawless) /Black=0.06 (flawless) .  Mistake:       	White=1     	---        Inaccurate:     	White=1     	Black=4      OK:         	White=25    	Black=18     Best:        	White=7     	Black=2} 1/2-1/2

[Event "USA Championship 2024"]
[Site "Saint Louis"]
[Date "2024.10.22"]
[Round "10.4"]
[White "Robson, Ray"]
[Black "Mishra, Abhimanyu"]
[Result "1-0"]
[ECO "C54"]
[WhiteElo "2693"]
[BlackElo "2630"]
[Annotator "TA"]
[PlyCount "141"]
[EventDate "2024.10.09"]
[EventType "tourn"]
[EventCountry "USA"]
[SourceTitle "playchess.com"]
[Source "ChessBase"]
[SourceQuality "1"]
[TimeControl "40/5400+30:1800+30"]

{[%evp 56,141,0,0,16,19,37,50,96,103,98,95,96,96,86,85,104,94,91,96,114,86,89,88,97,103,107,89,103,109,108,92,100,82,71,76,71,71,76,73,117,96,96,96,98,115,124,124,110,90,159,159,361,320,399,415,491,485,818,797,29971,29970,29972,29974,29974,29975,29975,29976,29981,29972,29981,0,29979,29980,29981,29978,29978,29979,29979,29982,29990,29990,29991,29984,29990,29991,29991,29990]} 1. e4 {[%emt 0:00:06]} e5 {[%emt 0:00:14]} 2. Nf3 {[%emt 0:00:15]} Nc6 {[%emt 0:00:11]} 3. Bc4 {[%emt 0:01:00]} Bc5 {[%emt 0:00:13]} 4. c3 {[%emt 0:00:52]} Nf6 {[%emt 0:00:26]} 5. d3 {[%emt 0:00:27]} O-O {[%emt 0:01:06]} 6. Nbd2 {[%emt 0:01:26]} d6 {[%emt 0:03:17]} 7. O-O {[%emt 0:03:03]} Bb6 {[%emt 0:01:10]} 8. h3 {[%emt 0:02:32]} h6 {[%emt 0:01:06]} 9. Re1 {[%emt 0:01:25]} Ne7 {[%emt 0:02:04]} 10. a4 {[%emt 0:01:32]} a5 {[%emt 0:02:01]} 11. Ba2 {[%emt 0:01:09]} c6 {[%emt 0:02:56]} 12. d4 {[%emt 0:00:58]} Ng6 {[%emt 0:01:40]} 13. Qc2 {[%emt 0:01:08]} Re8 {[%emt 0:06:08]} 14. Nf1 {[%emt 0:03:07]} Bc7 {[%emt 0:11:46]} 15. Ng3 {[%emt 0:16:09]} d5 {[%emt 0:03:37]} 16. dxe5 {[%emt 0:08:57]} Nxe5 {[%emt 0:11:37]} 17. Nxe5 {[%emt 0:02:13]} Bxe5 {[%emt 0:00:25]} 18. f4 {[%emt 0:02:37]} Bc7 {[%emt 0:01:34]} 19. e5 {[%emt 0:01:01]} Ne4 {[%emt 0:02:01]} 20. Nxe4 {[%emt 0:03:10]} Bf5 {[%emt 0:01:53]} 21. Be3 {[%emt 0:03:29]} Bxe4 {[%emt 0:00:35]} 22. Qf2 {[%emt 0:00:28]} f6 {[%emt 0:08:51]} 23. Bc5 {[%emt 0:02:12]} b6 {[%emt 0:04:51]} 24. Ba3 {[%emt 0:05:19]} Kh7 {[%emt 0:08:23]} 25. Rad1 {[%emt 0:05:53]} Qc8 {[%emt 0:00:19]} 26. c4 {[%emt 0:15:43]} fxe5 {[%emt 0:01:03]} 27. cxd5 {[%emt 0:00:25]} cxd5 {[%emt 0:00:52]} 28. Rxd5 {[%emt 0:01:11]} Bxd5 {[%emt 0:03:50]} (28... exf4 $2 29. Rxe4 Rxe4 30. Qc2 $18) 29. Bxd5 {[%emt 0:00:09]} Kh8 {[%emt 0:07:05]} ({Avoid the trap} 29... exf4 $2 30. Rxe8 (30. Qc2+ Kh8 $11) 30... Qxe8 31. Bxa8 $18 (31. Qc2+ Kh8 $11)) (29... Rb8 $5 30. Qc2+ e4 $11) 30. Bc6 {[%emt 0:02:19]} Qe6 {[%emt 0:04:05]} (30... e4 {simplifies} 31. Bxe8 Qxe8 32. Qd4 Rd8) 31. Qc2 {[%emt 0:08:32]} (31. Bxa8 {simplifies} Rxa8 32. Rc1 Qf7 33. fxe5 Qxf2+ 34. Kxf2 Bxe5 35. Rc6) 31... Bd6 {[%emt 0:05:38]} (31... Rac8 $14 32. Bxe8 Qxe8) 32. Bxd6 $16 {[%emt 0:02:54]} Qxd6 {[%emt 0:00:07]} 33. Bxa8 {[%emt 0:00:17]} Rxa8 {[%emt 0:00:02]} 34. fxe5 {[%emt 0:00:31]} Qe6 {[%emt 0:00:16]} 35. Re3 {[%emt 0:03:27]} Re8 {[%emt 0:01:51]} 36. Qe4 {[%emt 0:01:07]} Kg8 {[%emt 0:01:10]} 37. Kh2 {[%emt 0:00:24]} Kh8 {[%emt 0:00:35]} 38. Re2 {[%emt 0:00:44]} Kg8 {[%emt 0:00:46]} 39. Re1 {[%emt 0:00:19]} Kh8 {[%emt 0:00:37]} 40. Re3 {[%emt 0:00:15]} Kg8 {[%emt 0:00:11]} 41. Qd4 {[%emt 0:01:53]} Kh8 {[%emt 0:07:12]} 42. Kg3 {[%emt 0:05:52]} Kg8 {[%emt 0:10:31]} 43. Qg4 {[%emt 0:02:19]} Qd5 {[%emt 0:01:09]} 44. e6 {[%emt 0:08:37]} (44. Qe4 {simplifies} Qxe4 45. Rxe4 Kf7 46. Re3) 44... Qd6+ {[%emt 0:03:15] [#]} 45. Kf2 $1 {[%emt 0:01:14]} Qd2+ {[%emt 0:01:12]} 46. Re2 {[%emt 0:03:59]} Qd5 {[%emt 0:02:45]} 47. Kg1 {[%emt 0:04:40]} Re7 {[%emt 0:02:38]} 48. Kh2 {[%emt 0:02:24]} Qd6+ {[%emt 0:01:36]} 49. g3 {[%emt 0:00:48]} Qd3 {[%emt 0:03:52]} 50. h4 {[%emt 0:00:52]} b5 {[%emt 0:01:36]} 51. axb5 {[%emt 0:00:28]} Qxb5 {[%emt 0:00:02]} 52. Qe4 {[%emt 0:01:04]} Qb6 {[%emt 0:02:51]} ({Black should try} 52... h5 53. Rc2 a4) 53. Qf5 $16 {[%emt 0:00:54]} Qc6 $2 {[%emt 0:01:11]} (53... a4 $16 54. Qd5 Qa6) 54. Qxa5 $18 {[%emt 0:00:26]} Qf3 {[%emt 0:00:29]} 55. Qe5 {[%emt 0:00:22]} Qb3 {[%emt 0:00:20]} 56. Qe4 {[%emt 0:01:03]} h5 {[%emt 0:00:34]} (56... Kh8 $142 57. Kg2 Kg8) 57. Qf5 $18 {[%emt 0:00:49]} Qc4 {[%emt 0:00:35]} 58. Rc2 {[%emt 0:01:10]} ({Not} 58. Qxh5 Rxe6 59. Rd2 Rf6 $18) 58... Qa6 {[%emt 0:00:18]} 59. b4 {[%emt 0:00:18]} Qb7 {[%emt 0:00:49]} 60. b5 {[%emt 0:00:16]} Re8 {[%emt 0:00:12]} 61. Rf2 {[%emt 0:01:51]} Re7 {[%emt 0:00:27]} 62. Qf8+ {[%emt 0:00:32]} Kh7 {[%emt 0:00:02]} 63. Qf5+ {[%emt 0:00:05]} Kg8 {[%emt 0:00:08]} 64. Rd2 {[%emt 0:00:48]} Qa8 {[%emt 0:01:28]} 65. b6 {[%emt 0:00:23]} Qe8 {[%emt 0:00:25]} 66. Qd5 {[%emt 0:00:30]} Kh7 {[%emt 0:00:44]} 67. b7 {[%emt 0:00:16]} Qb8 {[%emt 0:00:20]} 68. Qxh5+ {[%emt 0:00:48]} Kg8 {[%emt 0:00:04]} 69. Rb2 {[%emt 0:00:16]} Rxe6 {[%emt 0:00:26]} 70. Qd5 {[%emt 0:00:18]} Kf7 {[%emt 0:00:05]} 71. Re2 {[%emt 0:00:22]} 1-0

[Event "USA Championship 2024"]
[Site "Saint Louis"]
[Date "2024.10.22"]
[Round "10.5"]
[White "Shankland, Sam"]
[Black "Sevian, Samuel"]
[Result "0-1"]
[ECO "E04"]
[WhiteElo "2677"]
[BlackElo "2689"]
[Annotator "RC"]
[PlyCount "150"]
[EventDate "2024.10.09"]
[EventType "tourn"]
[EventCountry "USA"]
[SourceTitle "playchess.com"]
[Source "ChessBase"]
[SourceQuality "1"]
[TimeControl "40/5400+30:1800+30"]

1. d4 {[%emt 0:00:01]} Nf6 {[%emt 0:02:41]} 2. c4 {[%emt 0:00:07]} e6 {[%emt 0:00:07]} 3. Nf3 {[%emt 0:00:06]} d5 {[%emt 0:01:03]} 4. g3 {[%emt 0:00:07]} dxc4 {[%emt 0:00:11]} 5. Bg2 {[%emt 0:00:05]} Nc6 {[%emt 0:00:59]} 6. O-O {[%emt 0:02:27]} Rb8 {[%emt 0:01:52]} 7. Nc3 {[%emt 0:00:06]} a6 {[%emt 0:10:55]} 8. e4 {[%emt 0:00:41]} Be7 {[%emt 0:00:47]} 9. Qe2 {[%emt 0:00:10]} b5 {[%emt 0:00:07]} 10. Rd1 {[%emt 0:00:07]} O-O {[%emt 0:00:08]} 11. d5 {[%emt 0:00:19]} exd5 {[%emt 0:00:07]} 12. e5 {[%emt 0:00:03]} d4 {[%emt 0:00:09]} 13. exf6 {[%emt 0:00:06]} Bxf6 {[%emt 0:00:05]} 14. Ne4 {[%emt 0:00:06]} Be7 {[%emt 0:06:09]} 15. b3 {[%emt 0:00:19]} d3 {[%emt 0:02:26]} 16. Qd2 {[%emt 0:00:27]} f5 {[%emt 0:02:36]} 17. Nc3 {[%emt 0:02:02]} Bf6 {[%emt 0:04:08]} 18. Bb2 {[%emt 0:04:48]} Be6 {[%emt 0:17:36]} 19. Rac1 {[%emt 0:10:26]} Bf7 {[%emt 0:04:19]} 20. bxc4 {[%emt 0:07:45]} bxc4 {[%emt 0:00:20]} 21. Na4 {[%emt 0:05:18]} Bxb2 {[%emt 0:10:17]} 22. Nxb2 {[%emt 0:00:05]} Nd4 {[%emt 0:00:08]} 23. Nxd4 {[%emt 0:00:43]} Qxd4 {[%emt 0:00:02]} 24. Na4 {[%emt 0:00:42]} Rfe8 {[%emt 0:00:27]} 25. Nc3 {[%emt 0:02:33]} Rb6 {[%emt 0:03:09]} 26. Bf3 {[%emt 0:16:02]} h6 {[%emt 0:02:41]} 27. h4 {[%emt 0:04:44]} Rd8 {[%emt 0:07:14]} 28. Kg2 {[%emt 0:06:14]} Rdb8 {[%emt 0:00:44]} 29. Rb1 {[%emt 0:03:28]} Kh7 {[%emt 0:04:49]} 30. Re1 {[%emt 0:03:46]} Kg8 {[%emt 0:01:38]} 31. Rec1 {[%emt 0:03:37]} Kh7 {[%emt 0:00:44]} 32. h5 {[%emt 0:07:31]} Kh8 {[%emt 0:02:02]} 33. Qf4 {[%emt 0:05:47]} Qxf4 {[%emt 0:01:16]} 34. gxf4 {[%emt 0:00:01]} Rd8 {[%emt 0:00:07]} 35. Rd1 {[%emt 0:02:16]} Rd4 {[%emt 0:04:59]} 36. Rd2 {[%emt 0:02:23]} Rxb1 {[%emt 0:08:48]} 37. Nxb1 {[%emt 0:00:02]} Rxf4 {[%emt 0:00:05]} 38. Nc3 {[%emt 0:01:34]} Rh4 {[%emt 0:02:21]} 39. Kg3 {[%emt 0:01:15]} Rd4 {[%emt 0:00:01]} 40. Rb2 {[%emt 0:02:08]} d2 {[%emt 0:01:22]} 41. Be2 {[%emt 0:32:24]} f4+ {[%emt 0:05:20]} 42. Kg2 {[%emt 0:00:00]} g5 {[%emt 0:01:04]} 43. hxg6 {[%emt 0:00:00]} Bxg6 {[%emt 0:00:35]} 44. f3 {[%emt 0:00:00]} h5 {[%emt 0:01:41]} 45. Bd1 {[%emt 0:00:00]} Kg7 {[%emt 0:04:15]} 46. Rb7 {[%emt 0:00:00]} Rd7 {[%emt 0:05:27]} 47. Ne2 {[%emt 0:00:00]} Re7 {[%emt 0:03:20]} 48. Kf2 {[%emt 0:00:47]} h4 {[%emt 0:00:17]} 49. Nc3 {[%emt 0:09:43]} h3 {[%emt 0:04:29]} 50. Kg1 {[%emt 0:00:05]} Kh6 {[%emt 0:06:19]} 51. Rb4 {[%emt 0:00:32]} Bf7 {[%emt 0:01:15]} 52. Rb2 {[%emt 0:00:35]} Re3 {[%emt 0:00:52]} 53. Ne2 {[%emt 0:00:05]} c3 {[%emt 0:00:59]} 54. Rc2 {[%emt 0:00:08]} Bh5 {[%emt 0:00:11]} 55. Kh2 {[%emt 0:01:44]} Bxf3 {[%emt 0:01:32]} 56. Nxc3 {[%emt 0:00:05]} Rxc3 {[%emt 0:00:21]} 57. Rxc3 {[%emt 0:00:17]} Bxd1 {[%emt 0:00:03]} 58. Rc6+ {[%emt 0:00:36]} Kg5 {[%emt 0:00:35]} 59. Rc5+ {[%emt 0:00:05]} Kf6 {[%emt 0:00:53]} 60. Rd5 {[%emt 0:00:10]} Be2 {[%emt 0:00:49]} 61. Rxd2 {[%emt 0:00:06]} f3 {[%emt 0:00:03]} 62. Rd8 {[%emt 0:00:39]} Ke7 {[%emt 0:00:51]} 63. Rd2 {[%emt 0:00:02]} Kf6 {[%emt 0:00:30]} 64. Rd8 {[%emt 0:00:13]} Ke7 {[%emt 0:00:04]} 65. Rd2 {[%emt 0:00:04]} Kf7 {[%emt 0:00:47]} 66. Rd4 {[%emt 0:00:33]} c5 {[%emt 0:00:31]} 67. Rh4 {[%emt 0:01:26]} Ke6 {[%emt 0:00:42]} 68. Kg3 {[%emt 0:00:19]} c4 {[%emt 0:00:18]} 69. Rxh3 {[%emt 0:01:15]} c3 {[%emt 0:00:33]} 70. Rh8 {[%emt 0:00:57]} Kd5 {[%emt 0:00:15]} 71. Kf2 {[%emt 0:01:01]} c2 {[%emt 0:00:53]} 72. Rd8+ {[%emt 0:00:04]} Ke4 {[%emt 0:00:08]} 73. Rc8 {[%emt 0:00:05]} Bd3 {[%emt 0:00:48]} 74. Re8+ {[%emt 0:02:01]} Kd4 {[%emt 0:00:04]} 75. Re1 {[%emt 0:00:14]} Be2 {[%emt 0:00:17]} 0-1